bitfinex/quotes_ETHUSD_20240820
["timestamp","ask_amount","ask_price","bid_price","bid_amount"]
[1724119693684,2.255,2652.6,2652.3,1.96615026]
[1724119693857,2.255,2652.6,2652.4,1.31081243]
[1724119694060,2.255,2652.6,2652.2,4.55580688]
[1724119694259,2.255,2652.6,2652.3,1.31078104]
[1724119694460,2.255,2652.9,2652.5,1.278]
[1724119694674,2.255,2652.9,2652.6,0.55]
[1724119698098,2.255,2652.9,2652.6,4.31987]
[1724119698305,2.2944,2653.3,2652.8,3.7696]
[1724119698501,2.2944,2653.3,2653.0,5.0473]
[1724119698680,2.2944,2653.3,2653.0,1.278]
[1724119698882,2.2944,2653.3,2653.1,0.55]
[1724119699987,2.3814,2653.6,2653.1,0.55]
[1724119700187,2.3814,2653.6,2653.1,4.31917]
[1724119700379,6.14997,2653.6,2653.1,1.561519]
[1724119701101,6.14986,2653.6,2653.2,1.278]
[1724119701400,6.14986,2653.6,2653.3,0.55]
[1724119701614,2.3814,2653.6,2653.3,0.55]
[1724119703291,2.3814,2653.6,2653.4,0.17697882]
[1724119704195,6.14988,2653.6,2653.4,0.17697882]
[1724119710509,3.7686,2653.5,2653.4,0.17697882]
[1724119711596,14.765648,2653.5,2653.4,0.17697882]
[1724119711799,6.23751,2652.9,2652.4,2.75128388]
[1724119711997,6.23751,2652.9,2652.5,1.3106739]
[1724119712209,6.23751,2652.9,2652.4,1.278]
[1724119712795,6.23754,2652.9,2652.4,1.278]
[1724119713013,3.091754,2652.9,2652.1,3.77049]
[1724119713174,3.76988,2652.6,2652.2,2.58879126]
[1724119713381,3.76988,2652.6,2652.2,1.278]
[1724119714799,3.76988,2652.6,2652.3,0.55]
[1724119715182,3.76967,2652.8,2652.0,2.75150475]
[1724119715183,2.3678,2652.5,2652.0,2.75150475]
[1724119715384,2.3678,2652.3,2651.9,0.59100723]
[1724119715686,3.77073,2652.0,2651.5,1.278]
[1724119716421,7.54159,2652.0,2651.5,1.278]
[1724119716712,7.5416,2652.0,2651.5,1.278]
[1724119716899,3.7709,2651.9,2651.5,1.278]
[1724119717911,3.77107,2651.8,2651.6,0.55]
[1724119718419,6.938563,2651.9,2651.7,0.15581655]
[1724119718723,10.709543,2651.9,2651.4,0.55]
[1724119718882,6.938563,2651.9,2651.8,0.15575647]
[1724119719088,6.938563,2651.9,2651.4,0.55]
[1724119719089,6.1844,2651.9,2651.4,0.55]
[1724119719283,6.1844,2651.9,2651.8,0.15575647]
[1724119719484,6.1844,2651.9,2651.4,0.55]
[1724119719741,6.1844,2651.9,2651.8,0.15575647]
[1724119719888,6.1844,2651.9,2651.4,0.55]
[1724119720416,2.4135,2651.9,2651.5,0.15593675]
[1724119720598,2.4135,2651.9,2651.6,0.55]
[1724119720798,2.4135,2651.9,2651.6,0.70630431]
[1724119721018,6.18439,2651.9,2651.6,0.70630431]
[1724119721318,3.77089,2651.9,2651.6,0.70630431]
[1724119721522,2.2565,2652.3,2651.9,3.77074]
[1724119721687,3.76985,2652.7,2652.1,3.77058]
[1724119721887,3.76985,2652.7,2652.2,0.55]
[1724119721888,3.77004,2652.5,2652.2,0.55]
[1724119722112,3.77004,2652.5,2652.2,0.70594381]
[1724119722523,3.77029,2652.4,2652.2,0.15594381]
[1724119722723,7.54016,2652.5,2651.9,3.77087]
[1724119722899,3.77018,2652.4,2652.0,0.55]
[1724119723103,3.77018,2652.4,2652.0,0.70606396]
[1724119723316,3.77004,2652.5,2652.0,0.70606396]
[1724119725209,3.77004,2652.5,2652.0,4.47677396]
[1724119726702,2.4659,2652.6,2652.2,3.77042]
[1724119727008,2.4659,2652.6,2652.3,0.70615338]
[1724119727338,3.76962,2652.8,2652.3,0.70615338]
[1724119727739,3.76975,2652.7,2652.3,0.70615338]
[1724119728031,3.7697,2652.8,2652.3,4.47644338]
[1724119728601,3.7697,2652.8,2652.3,0.70615338]
[1724119732858,2.4912,2652.9,2652.4,0.07539981]
[1724119733083,3.07,2654.0,2652.8,7.53903]
[1724119733084,2.3624,2653.2,2652.8,7.53903]
[1724119733259,2.3624,2653.2,2652.8,3.76951]
[1724119733440,2.3624,2653.2,2652.9,0.70550792]
[1724119733630,6.744562,2653.2,2652.9,0.70550792]
[1724119736457,3.76919,2653.1,2652.9,0.15550792]
[1724119736657,3.76919,2653.1,2652.5,7.5399]
[1724119736856,3.76919,2653.1,2653.0,0.15544789]
[1724119737063,1.0513752,2653.1,2652.8,3.76959]
[1724119737236,2.3624,2653.2,2653.0,0.15544789]
[1724119737556,2.3624,2653.2,2653.1,0.15538786]
[1724119737764,2.465,2653.4,2653.0,3.7692]
[1724119737945,2.465,2653.4,2653.1,4.47455786]
[1724119738149,2.465,2653.6,2653.1,4.47455786]
[1724119738460,6.85688,2653.6,2653.1,4.47455786]
[1724119738670,3.08834,2653.6,2653.1,4.47447786]
[1724119739564,3.76861,2653.5,2653.1,0.70538786]
[1724119739933,3.08834,2653.6,2653.1,0.70538786]
[1724119740544,6.85684,2653.6,2653.1,4.47448786]
[1724119740736,3.08834,2653.6,2653.1,8.24358786]
[1724119740938,3.08834,2653.6,2653.1,8.24357786]
[1724119741144,3.08834,2653.6,2653.1,4.47447786]
[1724119741467,3.08834,2653.6,2653.1,8.24354786]
[1724119741770,2.465,2653.6,2653.1,4.47445786]
[1724119742231,2.465,2653.6,2653.1,8.24352786]
[1724119742627,6.23347,2653.6,2653.1,4.47445786]
[1724119742934,2.465,2653.6,2653.1,4.47445786]
[1724119743128,2.465,2653.6,2653.1,8.24354786]
[1724119743330,2.283,2653.8,2653.3,3.76882]
[1724119743532,6.05119,2653.8,2653.4,0.70459155]
[1724119745268,6.0515,2653.6,2653.4,0.15459155]
[1724119745442,6.0515,2653.6,2653.1,3.76907]
[1724119745766,6.0515,2653.6,2653.2,0.55]
[1724119746071,6.0515,2653.6,2653.3,0.15459767]
[1724119746258,6.0515,2653.6,2653.2,0.55]
[1724119746461,6.0515,2653.6,2653.4,0.15453765]
[1724119746660,6.0515,2653.6,2653.2,0.55]
[1724119746661,6.74352594,2653.6,2653.2,0.55]
[1724119746857,6.74352594,2653.6,2653.5,0.15447764]
[1724119747057,6.74352594,2653.6,2653.2,0.55]
[1724119747359,6.74352594,2653.6,2653.5,0.15447764]
[1724119747537,6.0515,2653.6,2653.2,0.55]
[1724119747736,6.0515,2653.6,2653.5,0.15447764]
[1724119747935,6.0515,2653.6,2653.2,0.55]
[1724119748156,6.0515,2653.6,2653.5,0.15447764]
[1724119748356,6.0515,2653.6,2653.2,0.55]
[1724119748357,7.033483,2653.6,2653.2,0.55]
[1724119748559,7.033483,2653.6,2653.5,0.15447764]
[1724119748762,7.033483,2653.6,2653.2,0.55]
[1724119748959,7.033483,2653.6,2653.1,0.55]
[1724119749281,7.033483,2653.6,2653.2,0.15465769]
[1724119749282,4.8488213,2653.5,2653.2,0.15465769]
[1724119756140,1.0801813,2653.5,2653.2,0.15465769]
[1724119756372,7.32947,2653.6,2653.2,0.15465769]
[1724119759078,3.76861,2653.5,2653.2,0.15465769]
[1724119760395,3.561,2653.6,2653.2,0.15465769]
[1724119760584,7.32946,2653.6,2653.2,0.15465769]
[1724119760894,7.32946,2653.6,2653.2,3.92366769]
[1724119760895,2.283,2653.6,2653.2,3.92366769]
[1724119761191,2.283,2653.6,2653.3,0.55]
[1724119761556,2.283,2653.6,2653.4,0.1544337]
[1724119763766,6.05148,2653.6,2653.4,0.1544337]
[1724119764093,7.161261,2653.6,2653.4,0.1544337]
[1724119764591,3.7686,2653.5,2653.4,0.1544337]
[1724119765172,3.7686,2653.5,2653.4,0.15442985]
[1724119766461,3.7686,2653.5,2653.0,3.76924]
[1724119766661,3.7686,2653.5,2648.7,9.28090266]
[1724119766662,7.5372,2653.5,2653.4,0.15442985]
[1724119766859,3.76952,2652.9,2652.3,11.15023]
[1724119767054,5.04752,2652.9,2652.3,11.15023]
[1724119767255,2.3004,2652.7,2652.3,11.15023]
[1724119767803,2.3004,2652.7,2652.3,14.92047]
[1724119767966,2.3004,2652.7,2652.3,11.15023]
[1724119768497,2.3004,2652.7,2652.4,0.55]
[1724119769066,2.3004,2652.7,2652.4,4.32012]
[1724119770905,2.3004,2652.7,2652.4,3.77012]
[1724119771067,2.3004,2652.7,2652.3,3.77023]
[1724119771068,2.3004,2652.7,2652.3,7.54045]
[1724119771491,2.3004,2652.7,2652.3,3.77022]
[1724119773968,9.84005,2652.7,2652.1,9.50709906]
[1724119774297,6.07021,2652.7,2652.2,4.32042]
[1724119774495,3.6942,2652.4,2652.1,1.96608906]
[1724119774695,7.46465,2652.2,2652.0,0.78536688]
[1724119774873,7.46465,2652.2,2651.8,8.55805032]
[1724119774874,2.4162,2652.1,2651.8,1.17805032]
[1724119775077,3.77088,2651.9,2651.7,1.57073376]
[1724119776011,3.77103,2651.8,2651.5,0.78536688]
[1724119776318,6.26496,2651.7,2651.5,0.78536688]
[1724119777815,8.8206,2651.6,2651.5,0.78536688]
[1724119778115,12.32234,2651.6,2651.5,0.78536688]
[1724119778502,11.04434,2651.6,2651.5,0.78536688]
[1724119781122,14.81564,2651.6,2651.5,0.78536688]
[1724119782613,11.04434,2651.6,2651.5,0.78536688]
[1724119783196,6.1416,2651.6,2651.5,0.78536688]
[1724119783735,2.3703,2651.6,2651.5,0.78536688]
[1724119785034,2.3703,2651.6,2651.1,7.54381]
[1724119785610,2.3703,2651.6,2651.2,3.77185]
[1724119785919,2.3703,2651.6,2651.1,3.77188]
[1724119786102,2.3703,2651.6,2650.5,18.92336134]
[1724119786103,3.77151,2651.5,2650.7,7.54501]
[1724119786293,2.269,2651.2,2650.7,7.54501]
[1724119786493,2.269,2651.2,2650.7,3.7725]
[1724119787231,6.0409,2651.2,2650.7,3.7725]
[1724119787438,2.269,2651.2,2650.9,3.77228]
[1724119788637,2.3256,2651.4,2651.0,3.77591]
[1724119788810,3.77125,2651.7,2651.1,3.77197]
[1724119788811,2.3256,2651.6,2651.1,3.77197]
[1724119789914,6.09691,2651.6,2651.1,3.77197]
[1724119790227,2.3256,2651.6,2651.1,3.77197]
[1724119790424,3.77117,2651.7,2651.2,3.77184]
[1724119791322,7.54241,2651.7,2651.2,3.77184]
[1724119791500,7.54241,2651.7,2651.0,5.268679]
[1724119791501,3.77131,2651.6,2651.0,5.268619]
[1724119791701,3.77131,2651.6,2651.1,4.322]
[1724119791901,3.77117,2651.7,2651.2,3.77179]
[1724119792513,2.4551,2651.8,2651.2,3.77179]
[1724119792715,6.22615,2651.8,2651.3,3.77172]
[1724119793039,6.22615,2651.8,2651.2,3.77179]
[1724119793040,3.7714,2651.6,2651.1,0.55]
[1724119793335,3.7713,2651.6,2651.4,0.14251587]
[1724119793540,3.7713,2651.6,2651.1,4.32201]
[1724119793697,3.7713,2651.6,2651.5,0.14245576]
[1724119794100,10.60742711,2651.7,2651.1,4.32201]
[1724119794433,6.83613711,2651.7,2651.5,0.14245576]
[1724119794743,6.83613711,2651.7,2651.6,0.14239566]
[1724119795038,6.83609711,2651.7,2651.2,3.77186]
[1724119795205,6.22634,2651.7,2651.6,0.14239566]
[1724119795601,6.22634,2651.7,2651.2,3.77186]
[1724119795834,6.22634,2651.7,2651.6,0.14239566]
[1724119796038,6.22634,2651.7,2651.2,3.77186]
[1724119796203,2.4551,2651.7,2651.6,0.14239566]
[1724119796402,2.4551,2651.7,2651.3,3.77171]
[1724119796733,2.4551,2651.7,2651.6,0.14239566]
[1724119796933,2.4551,2651.7,2651.3,3.77171]
[1724119797139,2.4551,2651.7,2651.6,0.14238806]
[1724119797342,2.4551,2651.7,2651.3,3.77171]
[1724119797544,2.4551,2651.7,2651.6,0.14238806]
[1724119797743,2.4551,2651.7,2651.3,3.77171]
[1724119797941,2.4551,2651.7,2651.6,0.14238806]
[1724119798135,2.4551,2651.7,2651.3,3.77171]
[1724119798339,2.4551,2651.7,2651.6,0.14238806]
[1724119798512,2.4551,2651.7,2651.3,3.77171]
[1724119798845,2.4551,2651.7,2651.6,0.14238806]
[1724119799307,2.4551,2651.7,2651.3,3.77169]
[1724119799509,2.4551,2651.7,2651.3,4.581045]
[1724119799742,2.4551,2651.7,2651.4,0.14250827]
[1724119800734,6.22626,2651.7,2651.4,0.14250827]
[1724119801113,6.22626,2651.7,2651.2,3.77186]
[1724119801340,6.22626,2651.7,2651.5,0.14244816]
[1724119801509,6.22626,2651.7,2651.2,3.77186]
[1724119801715,6.22626,2651.7,2651.6,0.14238806]
[1724119801940,3.7715,2651.5,2651.0,3.77585]
[1724119802247,3.7715,2651.5,2651.1,0.55]
[1724119802813,6.22626,2651.7,2651.2,3.77187]
[1724119803415,9.99753,2651.7,2651.2,3.77187]
[1724119803617,6.22626,2651.7,2651.2,3.77187]
[1724119803816,2.4551,2651.7,2651.3,3.77172]
[1724119804017,3.77098,2651.9,2651.4,3.77151]
[1724119804317,6.03028,2651.9,2651.4,3.7715]
[1724119804738,6.03028,2651.9,2651.5,3.77142]
[1724119804938,6.03028,2651.9,2651.4,7.54302]
[1724119805143,2.2593,2651.9,2651.4,4.8518392]
[1724119805452,2.2593,2651.9,2651.5,3.77138]
[1724119805754,2.2593,2651.9,2651.4,4.8518392]
[1724119805922,2.2593,2651.9,2651.5,3.77142]
[1724119806922,2.2593,2651.9,2651.4,8.6233092]
[1724119807321,6.03018,2651.9,2651.4,4.8517992]
[1724119807519,9.80114,2651.9,2651.4,3.77146]
[1724119807925,6.03018,2651.9,2651.4,3.77146]
[1724119808137,9.80114,2651.9,2651.5,0.14228859]
[1724119808361,6.03018,2651.9,2651.5,0.14228859]
[1724119808943,3.77103,2651.8,2651.5,0.14228859]
[1724119809970,3.77103,2651.8,2651.2,4.581512]
[1724119810142,3.77103,2651.8,2651.6,0.13761126]
[1724119810345,3.77103,2651.8,2651.2,4.581512]
[1724119810561,9.79705,2651.7,2651.3,0.55]
[1724119810880,6.02579,2651.7,2651.1,8.09384]
[1724119811162,9.79704,2651.7,2651.1,8.09384]
[1724119811382,3.77149,2651.5,2651.0,3.77582]
[1724119811960,3.77149,2651.5,2651.1,3.77201]
[1724119812329,3.77131,2651.6,2651.1,3.77201]
[1724119813671,3.77131,2651.6,2651.1,7.54395]
[1724119813831,3.77131,2651.6,2651.1,4.526713]
[1724119815635,3.77131,2651.6,2651.1,3.77194]
[1724119815835,3.77131,2651.6,2651.1,7.54385]
[1724119817957,6.02576,2651.7,2651.2,3.77181]
[1724119818161,2.2546,2651.7,2651.3,3.7717]
[1724119820040,2.3743,2652.1,2651.4,1.28]
[1724119820375,2.3743,2652.1,2651.7,3.77113]
[1724119820561,6.14491,2652.1,2651.6,5.73803304]
[1724119820875,6.14491,2652.1,2651.6,3.7713]
[1724119821064,3.77074,2652.0,2651.5,3.77135]
[1724119821266,3.77074,2652.0,2651.6,1.31119571]
[1724119821460,3.77074,2652.0,2651.5,5.73814371]
[1724119821679,3.77074,2652.0,2651.5,9.50952371]
[1724119821845,3.77074,2652.0,2651.5,5.73814371]
[1724119822350,3.77074,2652.0,2651.5,9.50952371]
[1724119822555,3.77074,2652.0,2651.5,5.73814371]
[1724119823166,3.77074,2652.0,2651.6,0.13752834]
[1724119823387,2.4283,2651.9,2651.6,0.13752834]
[1724119823938,2.4283,2651.9,2651.3,11.15162]
[1724119823939,2.4283,2651.7,2651.3,11.15162]
[1724119824854,2.4283,2651.7,2651.4,1.31127219]
[1724119825044,2.4283,2651.7,2651.3,11.15162]
[1724119825647,2.4283,2651.7,2651.4,1.31126008]
[1724119826078,2.4283,2651.7,2651.3,11.15162]
[1724119826378,2.4283,2651.7,2651.4,5.0828342]
[1724119826552,2.4283,2651.7,2651.4,5.73843065]
[1724119827142,2.4283,2651.7,2651.3,7.13197535]
[1724119827346,2.4283,2651.7,2651.4,1.31125531]
[1724119827711,2.4283,2651.7,2651.3,7.01861104]
[1724119827998,2.4283,2651.7,2651.4,1.31129427]
[1724119828293,2.4283,2651.7,2651.3,7.01861104]
[1724119828495,2.4283,2651.7,2651.4,1.31126837]
[1724119828675,2.4283,2651.7,2651.3,5.05172]
[1724119828988,2.4283,2651.7,2651.3,7.01862906]
[1724119829996,2.4283,2651.7,2651.4,1.31128192]
[1724119830292,2.4283,2651.7,2651.3,7.01864284]
[1724119831166,2.4283,2651.7,2651.3,5.73864284]
[1724119831775,2.4283,2651.7,2651.4,1.31129067]
[1724119831960,2.4283,2651.7,2651.3,5.73864284]
[1724119832692,6.19956,2651.7,2651.3,1.96692284]
[1724119832991,6.19956,2651.7,2651.2,3.77184]
[1724119833208,6.19956,2651.7,2651.3,1.31133022]
[1724119833344,7.196626,2651.7,2651.2,3.77184]
[1724119833551,2.4135,2651.6,2651.3,1.3113173]
[1724119833802,2.4135,2651.6,2651.2,3.77184]
[1724119834105,2.4135,2651.6,2651.2,5.73890408]
[1724119834248,2.4135,2651.6,2651.3,1.3113754]
[1724119834586,2.4135,2651.6,2651.2,3.77184]
[1724119834786,2.4135,2651.6,2651.3,1.31137154]
[1724119834987,2.4135,2651.6,2651.2,3.77184]
[1724119835209,6.18483,2651.6,2651.2,1.96706632]
[1724119835380,6.18483,2651.6,2651.2,1.9671219]
[1724119835574,6.18483,2651.6,2651.1,5.0519]
[1724119835776,6.18483,2651.6,2651.2,1.86141506]
[1724119835976,9.95622,2651.6,2651.1,5.0519]
[1724119836211,7.180452,2651.6,2651.2,3.27853522]
[1724119836412,10.951872,2651.6,2651.2,1.96708511]
[1724119836725,7.180452,2651.6,2651.3,1.3113901]
[1724119836891,7.180452,2651.6,2651.1,3.7719]
[1724119837079,7.180452,2651.6,2651.2,3.2785408]
[1724119837408,7.180452,2651.6,2651.2,1.96712448]
[1724119837612,7.180452,2651.6,2651.1,4.56248755]
[1724119837775,7.180452,2651.6,2651.2,3.27846885]
[1724119837978,7.180452,2651.6,2651.1,4.56248755]
[1724119838289,2.4153,2651.5,2651.2,3.4551703]
[1724119838511,2.4153,2651.5,2651.2,2.14378392]
[1724119838692,2.4153,2651.5,2651.2,0.17670435]
[1724119839915,2.4153,2651.5,2651.2,2.1438252]
[1724119840432,6.18676,2651.5,2651.2,2.14380026]
[1724119840634,6.18676,2651.5,2651.2,0.17670435]
[1724119840981,6.18676,2651.5,2651.0,13.22649755]
[1724119841184,6.18676,2651.5,2651.3,0.17664277]
[1724119841382,2.4153,2651.5,2651.1,4.32201]
[1724119841613,2.4153,2651.5,2651.4,0.1765812]
[1724119841821,2.4153,2651.5,2651.2,1.31142707]
[1724119841822,2.4153,2651.5,2651.1,4.32201]
[1724119842081,2.4153,2651.5,2651.2,1.31142717]
[1724119842281,2.4153,2651.5,2651.3,0.17664277]
[1724119842550,2.4153,2651.5,2651.2,1.96707343]
[1724119842698,2.4153,2651.5,2651.4,0.1765812]
[1724119842877,2.4153,2651.5,2651.2,1.96708792]
[1724119843083,6.18675,2651.5,2651.3,0.17664277]
[1724119843284,6.18675,2651.5,2651.2,1.96708789]
[1724119843511,6.18675,2651.5,2651.3,0.17664277]
[1724119843788,6.18675,2651.5,2651.1,0.55]
[1724119843987,6.18675,2651.5,2651.4,0.1765812]
[1724119844182,6.18675,2651.5,2651.1,0.55]
[1724119844421,6.18675,2651.5,2651.4,0.1765812]
[1724119844598,6.18675,2651.5,2651.2,1.96706004]
[1724119844599,2.4153,2651.5,2651.2,1.96706004]
[1724119844806,2.4153,2651.5,2651.4,0.17671353]
[1724119845036,2.4153,2651.5,2651.3,0.1767751]
[1724119845328,2.4153,2651.5,2651.4,0.17671353]
[1724119845494,2.4153,2651.5,2651.1,5.11252755]
[1724119845837,2.4153,2651.5,2651.2,3.45527181]
[1724119846019,2.4153,2651.5,2651.2,0.17684424]
[1724119846522,6.18675,2651.5,2651.2,0.17684424]
[1724119846830,3.77173,2651.3,2651.2,0.17684424]
[1724119847038,6.25843,2651.3,2651.2,0.17684424]
[1724119847202,3.77189,2651.2,2651.0,0.00378]
[1724119847803,6.25843,2651.3,2651.0,0.00378]
[1724119848014,2.4867,2651.3,2651.0,0.00378]
[1724119848332,6.25843,2651.3,2651.0,0.00378]
[1724119849819,2.4867,2651.3,2651.0,0.00378]
[1724119850496,3.77147,2651.5,2651.1,3.7719]
[1724119850497,2.2708,2651.5,2651.1,3.7719]
[1724119850696,2.2708,2651.5,2651.1,7.54384]
[1724119850893,2.2708,2651.5,2651.1,3.7719]
[1724119851916,6.04226,2651.5,2651.0,2.53610508]
[1724119852121,6.04226,2651.5,2651.0,5.60586]
[1724119852485,6.04226,2651.5,2651.0,4.32586]
[1724119853210,2.4682,2651.3,2651.1,0.17697768]
[1724119853416,6.24,2651.3,2651.1,0.17697768]
[1724119853972,7.241231,2651.2,2651.1,0.17697768]
[1724119854093,11.013101,2651.2,2651.1,0.17697768]
[1724119856087,2.4682,2651.2,2651.1,0.17697768]
[1724119857223,6.24007,2651.2,2651.1,0.17697768]
[1724119859529,10.01194,2651.2,2651.1,0.17697768]
[1724119861594,6.77132,2651.6,2651.1,0.17697768]
[1724119861595,3.7717,2651.4,2651.1,0.17697768]
[1724119861837,6.20336,2651.5,2651.1,1.45697768]
[1724119861995,2.4319,2651.5,2651.1,5.22897768]
[1724119862202,2.4319,2651.5,2651.1,1.45697768]
[1724119862401,2.4319,2651.5,2651.1,0.17697768]
[1724119862617,2.4319,2651.5,2651.1,1.07748445]
[1724119862935,3.7716,2651.4,2651.1,0.17697768]
[1724119863293,7.54327,2651.4,2651.1,0.17697768]
[1724119863497,1.28,2651.6,2651.1,0.17697768]
[1724119863698,6.20897,2651.2,2651.1,0.17697768]
[1724119864132,9.98084,2651.2,2651.1,0.17697768]
[1724119864302,10.978924,2651.2,2651.1,0.17697768]
[1724119865313,10.988624,2651.2,2651.1,0.17697768]
[1724119866323,12.268624,2651.2,2651.1,0.17697768]
[1724119866529,10.988624,2651.2,2651.1,0.17697768]
[1724119867403,13.988624,2651.2,2651.1,0.17697768]
[1724119867606,17.760494,2651.2,2651.1,0.17697768]
[1724119868502,7.54402,2651.1,2651.0,0.00378]
[1724119868737,11.4758174,2651.1,2651.0,0.00378]
[1724119872934,15.2478274,2651.1,2651.0,0.00378]
[1724119878923,11.4758174,2651.1,2651.0,0.00378]
[1724119879150,3.77201,2651.1,2651.0,0.00378]
[1724119879351,3.973,2652.1,2651.0,0.1813262]
[1724119879352,3.77125,2651.7,2651.0,0.1813262]
[1724119879559,3.77134,2651.6,2651.0,0.1813262]
[1724119879755,3.77134,2651.6,2651.1,4.32194]
[1724119880062,3.77134,2651.6,2651.1,4.49948135]
[1724119880266,3.77134,2651.6,2651.2,0.45032613]
[1724119880620,3.77134,2651.6,2651.3,0.17741819]
[1724119880857,3.77134,2651.6,2651.2,0.45032613]
[1724119881150,3.77134,2651.6,2651.3,0.17741819]
[1724119881353,3.77134,2651.6,2651.2,0.45032613]
[1724119881565,3.77134,2651.6,2651.4,0.17735662]
[1724119881742,3.77134,2651.6,2651.3,0.17741819]
[1724119881918,7.54301,2651.5,2651.1,0.55]
[1724119882257,3.77147,2651.5,2651.2,0.17747977]
[1724119882620,3.77147,2651.5,2651.0,0.55378]
[1724119882832,3.77147,2651.5,2651.3,0.17741819]
[1724119883031,3.77147,2651.5,2651.0,1.213735]
[1724119883232,3.77147,2651.5,2651.4,0.17735662]
[1724119883454,3.77147,2651.5,2651.0,4.32592]
[1724119883662,3.77147,2651.5,2651.4,0.17735662]
[1724119884128,3.77147,2651.5,2651.0,4.32592]
[1724119884316,3.77147,2651.5,2651.1,0.17754135]
[1724119884521,3.77124,2651.7,2651.1,3.94952135]
[1724119884761,3.77124,2651.7,2651.1,0.17754135]
[1724119884977,2.3806,2651.8,2651.1,0.17754135]
[1724119884978,3.77153,2651.5,2651.1,0.17754135]
[1724119885142,3.77176,2651.3,2651.1,0.17754135]
[1724119887058,3.7716,2651.4,2651.1,0.17754135]
[1724119888133,3.7716,2651.4,2651.1,0.17387406]
[1724119888538,2.3806,2651.8,2651.1,0.17387406]
[1724119888759,3.77117,2651.7,2651.2,2.8209]
[1724119888966,3.77117,2651.7,2651.2,6.59275]
[1724119889171,7.54243,2651.7,2651.3,0.17381248]
[1724119889369,3.77117,2651.7,2651.2,3.857744]
[1724119889573,3.77137,2651.6,2651.4,0.17375091]
[1724119889740,6.15173,2651.8,2651.2,7.629614]
[1724119889935,3.77118,2651.7,2651.5,0.17368934]
[1724119890174,3.77118,2651.7,2651.2,7.629614]
[1724119890369,3.77132,2651.6,2651.2,0.55]
[1724119890677,3.77156,2651.5,2651.0,2.43958]
[1724119891450,3.77156,2651.5,2651.0,7.570921]
[1724119892098,3.77156,2651.5,2651.0,3.798761]
[1724119892393,3.77117,2651.7,2651.2,3.77186]
[1724119892755,3.77117,2651.7,2651.3,0.55]
[1724119894360,7.54246,2651.7,2651.3,0.55]
[1724119894577,3.77117,2651.7,2651.3,0.55]
[1724119894780,7.54247,2651.7,2651.3,0.55]
[1724119895173,3.77117,2651.7,2651.3,0.55]
[1724119895781,3.77117,2651.7,2651.4,0.1733197]
[1724119895987,7.54243,2651.7,2651.4,0.1733197]
[1724119896186,3.77117,2651.7,2651.4,0.1733197]
[1724119896392,3.77131,2651.6,2651.4,0.1733197]
[1724119897162,7.5429,2651.5,2651.4,0.1733197]
[1724119897360,3.77133,2651.6,2651.0,0.00378]
[1724119897590,3.77133,2651.6,2651.4,0.1733197]
[1724119897801,3.77133,2651.6,2651.1,3.77194]
[1724119897963,3.77133,2651.6,2651.5,0.17325813]
[1724119898165,3.77133,2651.6,2651.1,3.77194]
[1724119898364,3.77133,2651.6,2651.5,0.17325813]
[1724119898563,3.77133,2651.6,2651.1,5.392723]
[1724119898564,3.77133,2651.6,2651.1,3.77194]
[1724119898805,3.77133,2651.6,2651.5,0.17325813]
[1724119899005,3.77133,2651.6,2651.1,3.77194]
[1724119899219,3.77133,2651.6,2651.5,0.17325813]
[1724119899417,3.77133,2651.6,2651.1,3.77194]
[1724119899618,3.77133,2651.6,2651.5,0.17325813]
[1724119899921,3.77146,2651.5,2651.0,5.05593]
[1724119900089,7.54298,2651.5,2651.1,0.55]
[1724119900290,3.77146,2651.5,2651.1,0.55]
[1724119900892,3.77146,2651.5,2651.1,4.32201]
[1724119901491,3.77125,2651.7,2651.1,5.997798]
[1724119901817,3.77137,2651.6,2651.1,5.997798]
[1724119902488,3.77145,2651.5,2651.1,5.997798]
[1724119902685,3.77145,2651.5,2651.1,0.55]
[1724119906704,3.77176,2651.3,2651.0,0.00378]
[1724119906910,3.77195,2651.2,2651.0,0.00378]
[1724119907528,3.77155,2651.5,2651.0,0.00378]
[1724119907732,0.505155,2651.4,2651.0,0.00378]
[1724119907935,7.5431,2651.5,2651.0,3.77592]
[1724119908405,3.77159,2651.4,2651.0,3.77592]
[1724119908606,3.77159,2651.4,2651.0,0.00378]
[1724119908833,3.77159,2651.4,2651.0,0.55378]
[1724119909336,3.77174,2651.3,2651.0,0.55378]
[1724119909702,3.77174,2651.3,2651.0,0.00378]
[1724119909901,4.526069,2651.3,2651.0,0.00378]
[1724119910151,3.77174,2651.3,2651.0,0.00378]
[1724119912802,3.77161,2651.4,2651.0,3.77593]
[1724119913007,3.77161,2651.4,2651.0,0.00378]
[1724119913245,3.77161,2651.4,2651.1,0.17149503]
[1724119913620,3.77173,2651.3,2651.1,0.17149503]
[1724119913833,7.54357,2651.3,2651.1,0.17149503]
[1724119914036,3.77173,2651.3,2651.1,0.17149503]
[1724119916347,7.54309,2651.5,2651.1,0.17149503]
[1724119916843,3.77161,2651.4,2651.1,0.17149503]
[1724119917945,3.77122,2651.7,2651.1,3.94342503]
[1724119918149,3.7711,2651.8,2651.2,5.0936635]
[1724119918448,3.7711,2651.8,2651.3,0.17141716]
[1724119918639,3.77119,2651.7,2651.2,5.0936635]
[1724119918836,3.77119,2651.7,2651.4,0.17135558]
[1724119919051,5.05096,2651.9,2651.3,0.67488105]
[1724119919052,3.77096,2651.9,2651.3,0.67488105]
[1724119919214,3.77096,2651.9,2651.5,0.16539156]
[1724119919577,3.77076,2652.0,2651.4,3.9369103]
[1724119919755,3.77076,2652.0,2651.6,0.16527716]
[1724119920063,5.05065,2652.1,2651.6,0.16527716]
[1724119920064,3.77092,2651.9,2651.6,0.16527716]
[1724119920215,3.77092,2651.9,2651.4,3.77151]
[1724119920539,7.54204,2651.8,2651.7,0.1652156]